[Event "Late-Titled-Tuesday-Blitz-December-26-2023"]
[Site "Chess.com"]
[Date "2023.12.26"]
[Round "2"]
[White "Misticpikachu"]
[Black "GoltsevDmitry2000"]
[Result "1-0"]
[WhiteElo "2474"]
[BlackElo "2677"]
[TimeControl "180+1"]
[EndTime "14:19:24 PST"]
[Termination "Misticpikachu won by checkmate"]

1. c4 {[%clk 0:03:00.9]} 1... e5 {[%clk 0:02:59.8]} 2. Nc3 {[%clk 0:03:00.6]}
2... Nc6 {[%clk 0:03:00.1]} 3. Nf3 {[%clk 0:03:01]} 3... Nf6 {[%clk 0:03:00.5]}
4. e4 {[%clk 0:03:01]} 4... a5 {[%clk 0:02:58.2]} 5. d4 {[%clk 0:02:48.7]} 5...
exd4 {[%clk 0:02:54.8]} 6. Nxd4 {[%clk 0:02:49.6]} 6... Bc5 {[%clk 0:02:54.8]}
7. Be3 {[%clk 0:02:49.1]} 7... Nxd4 {[%clk 0:02:36.9]} 8. Bxd4 {[%clk
0:02:48.8]} 8... Qe7 {[%clk 0:02:37.2]} 9. Be2 {[%clk 0:02:44.8]} 9... Bxd4
{[%clk 0:02:30.3]} 10. Qxd4 {[%clk 0:02:44.3]} 10... d6 {[%clk 0:02:30.9]} 11.
O-O {[%clk 0:02:42.3]} 11... O-O {[%clk 0:02:29.4]} 12. Rac1 {[%clk 0:02:26]}
12... Re8 {[%clk 0:02:17.8]} 13. Bf3 {[%clk 0:02:25.1]} 13... Be6 {[%clk
0:02:05.4]} 14. Nd5 {[%clk 0:02:19.4]} 14... Bxd5 {[%clk 0:02:02.4]} 15. cxd5
{[%clk 0:02:19.7]} 15... Rac8 {[%clk 0:01:31.7]} 16. Rc4 {[%clk 0:02:16.9]}
16... b5 {[%clk 0:01:27.6]} 17. Rc2 {[%clk 0:02:02.7]} 17... Nxe4 {[%clk
0:01:17.3]} 18. Re1 {[%clk 0:01:24]} 18... f5 {[%clk 0:01:15.4]} 19. Rce2 {[%clk
0:01:23.6]} 19... Qe5 {[%clk 0:01:12]} 20. Qd3 {[%clk 0:01:13.5]} 20... Qf4
{[%clk 0:00:24.3]} 21. Bxe4 {[%clk 0:01:05.6]} 21... fxe4 {[%clk 0:00:23.5]} 22.
Rxe4 {[%clk 0:01:04.7]} 22... Rxe4 {[%clk 0:00:23.8]} 23. Qxe4 {[%clk
0:01:05.6]} 23... Qxe4 {[%clk 0:00:22.8]} 24. Rxe4 {[%clk 0:01:06.5]} 24... Kf7
{[%clk 0:00:23.2]} 25. f4 {[%clk 0:00:53.6]} 25... c5 {[%clk 0:00:21.1]} 26. Re6
{[%clk 0:00:41.4]} 26... Rd8 {[%clk 0:00:20.5]} 27. Kf2 {[%clk 0:00:42]} 27...
c4 {[%clk 0:00:19.9]} 28. Ke3 {[%clk 0:00:42.4]} 28... b4 {[%clk 0:00:13.3]} 29.
g4 {[%clk 0:00:16.8]} 29... a4 {[%clk 0:00:05.5]} 30. Kd2 {[%clk 0:00:16.6]}
30... b3 {[%clk 0:00:03.8]} 31. a3 {[%clk 0:00:15.6]} 31... Rc8 {[%clk
0:00:02.8]} 32. Kc3 {[%clk 0:00:14.2]} 32... Rd8 {[%clk 0:00:03.4]} 33. Kxc4
{[%clk 0:00:14]} 33... Rc8+ {[%clk 0:00:03.6]} 34. Kb4 {[%clk 0:00:13.7]} 34...
Rc2 {[%clk 0:00:04.5]} 35. Kxa4 {[%clk 0:00:13.7]} 35... Rxb2 {[%clk 0:00:05.1]}
36. Rxd6 {[%clk 0:00:14]} 36... Rxh2 {[%clk 0:00:05.7]} 37. Rb6 {[%clk
0:00:13.9]} 37... Rf2 {[%clk 0:00:05.6]} 38. Rxb3 {[%clk 0:00:13.7]} 38... Rxf4+
{[%clk 0:00:05.7]} 39. Rb4 {[%clk 0:00:14.4]} 39... Rf3 {[%clk 0:00:06.2]} 40.
Rd4 {[%clk 0:00:11.5]} 40... Ke7 {[%clk 0:00:06.1]} 41. d6+ {[%clk 0:00:11]}
41... Kd7 {[%clk 0:00:06.5]} 42. Kb4 {[%clk 0:00:11.4]} 42... Rf1 {[%clk
0:00:06.3]} 43. a4 {[%clk 0:00:11.6]} 43... Rb1+ {[%clk 0:00:06.8]} 44. Kc5
{[%clk 0:00:12.1]} 44... g6 {[%clk 0:00:06.8]} 45. a5 {[%clk 0:00:12.2]} 45...
h5 {[%clk 0:00:06.9]} 46. gxh5 {[%clk 0:00:12.2]} 46... gxh5 {[%clk 0:00:07.8]}
47. a6 {[%clk 0:00:12.8]} 47... Rc1+ {[%clk 0:00:07.2]} 48. Kb6 {[%clk
0:00:12.9]} 48... Rb1+ {[%clk 0:00:07.5]} 49. Ka7 {[%clk 0:00:13.2]} 49... Rb5
{[%clk 0:00:07.4]} 50. Ka8 {[%clk 0:00:13.2]} 50... Rb6 {[%clk 0:00:06.7]} 51.
a7 {[%clk 0:00:12.8]} 51... Rb1 {[%clk 0:00:07]} 52. Rh4 {[%clk 0:00:10]} 52...
Rb5 {[%clk 0:00:06.2]} 53. Rd4 {[%clk 0:00:08.1]} 53... Rb1 {[%clk 0:00:06]} 54.
Rd5 {[%clk 0:00:07.8]} 54... h4 {[%clk 0:00:05.2]} 55. Rh5 {[%clk 0:00:08.5]}
55... Rb4 {[%clk 0:00:05.6]} 56. Rh6 {[%clk 0:00:09]} 56... Rc4 {[%clk
0:00:04.5]} 57. Kb7 {[%clk 0:00:08.2]} 57... Rb4+ {[%clk 0:00:05]} 58. Ka6
{[%clk 0:00:08.8]} 58... Ra4+ {[%clk 0:00:04.5]} 59. Kb6 {[%clk 0:00:09.3]}
59... Rb4+ {[%clk 0:00:04.6]} 60. Ka5 {[%clk 0:00:09.8]} 60... Rb1 {[%clk
0:00:04.9]} 61. Rxh4 {[%clk 0:00:09.4]} 61... Ra1+ {[%clk 0:00:05.5]} 62. Kb6
{[%clk 0:00:09.5]} 62... Rb1+ {[%clk 0:00:05.9]} 63. Ka6 {[%clk 0:00:09.7]}
63... Ra1+ {[%clk 0:00:06.4]} 64. Kb6 {[%clk 0:00:10.2]} 64... Rb1+ {[%clk
0:00:06.8]} 65. Ka5 {[%clk 0:00:10.8]} 65... Ra1+ {[%clk 0:00:06]} 66. Ra4
{[%clk 0:00:11.1]} 66... Rf1 {[%clk 0:00:02.3]} 67. a8=Q {[%clk 0:00:11]} 67...
Ke6 {[%clk 0:00:02.7]} 68. Qe4+ {[%clk 0:00:11]} 68... Kxd6 {[%clk 0:00:01.4]}
69. Rd4+ {[%clk 0:00:10.8]} 69... Kc7 {[%clk 0:00:02]} 70. Qe7+ {[%clk 0:00:11]}
70... Kc6 {[%clk 0:00:02.2]} 71. Rd6+ {[%clk 0:00:10]} 71... Kc5 {[%clk
0:00:02.5]} 72. Qe5+ {[%clk 0:00:10.7]} 72... Kc4 {[%clk 0:00:03.2]} 73. Qb5+
{[%clk 0:00:10.2]} 73... Kc3 {[%clk 0:00:02.8]} 74. Rd3+ {[%clk 0:00:10.5]}
74... Kc2 {[%clk 0:00:02.7]} 75. Qb3+ {[%clk 0:00:11.1]} 75... Kc1 {[%clk
0:00:03.6]} 76. Rc3+ {[%clk 0:00:11.3]} 76... Kd2 {[%clk 0:00:02.3]} 77. Rc2+
{[%clk 0:00:11.8]} 77... Ke1 {[%clk 0:00:02.8]} 78. Qb1# {[%clk 0:00:12.1]} 1-0

[Event "Late-Titled-Tuesday-Blitz-December-26-2023"]
[Site "Chess.com"]
[Date "2023.12.26"]
[Round "2"]
[White "BestestBP"]
[Black "wild3000"]
[Result "0-1"]
[WhiteElo "2195"]
[BlackElo "2472"]
[TimeControl "180+1"]
[EndTime "14:19:27 PST"]
[Termination "wild3000 won by checkmate"]

1. c4 {[%clk 0:03:00.5]} 1... e5 {[%clk 0:02:59.3]} 2. Nc3 {[%clk 0:03:00.7]}
2... Nf6 {[%clk 0:02:59.2]} 3. Nf3 {[%clk 0:03:01.4]} 3... Nc6 {[%clk
0:02:58.9]} 4. e4 {[%clk 0:03:01.7]} 4... d6 {[%clk 0:02:57]} 5. d4 {[%clk
0:03:01.7]} 5... exd4 {[%clk 0:02:57.1]} 6. Nxd4 {[%clk 0:03:01.9]} 6... g6
{[%clk 0:02:56.9]} 7. Bg5 {[%clk 0:02:55.3]} 7... Bg7 {[%clk 0:02:56.5]} 8. Be2
{[%clk 0:02:47.7]} 8... O-O {[%clk 0:02:56.3]} 9. Nxc6 {[%clk 0:02:45.4]} 9...
bxc6 {[%clk 0:02:56.1]} 10. O-O {[%clk 0:02:45.2]} 10... Qe8 {[%clk 0:02:55.9]}
11. Bf3 {[%clk 0:02:41.9]} 11... Nd7 {[%clk 0:02:47.3]} 12. Re1 {[%clk
0:02:33.5]} 12... Rb8 {[%clk 0:02:40.9]} 13. Qc2 {[%clk 0:02:21.2]} 13... Qe5
{[%clk 0:02:34.5]} 14. Bd2 {[%clk 0:01:56.9]} 14... Nc5 {[%clk 0:02:33.7]} 15.
Rab1 {[%clk 0:01:51.8]} 15... f5 {[%clk 0:02:31.2]} 16. b4 {[%clk 0:01:43.8]}
16... Ne6 {[%clk 0:02:30.3]} 17. exf5 {[%clk 0:01:35.1]} 17... Qxf5 {[%clk
0:02:31.2]} 18. Qxf5 {[%clk 0:01:31.6]} 18... gxf5 {[%clk 0:02:26.7]} 19. Bxc6
{[%clk 0:01:26.2]} 19... Nd4 {[%clk 0:02:20.5]} 20. Bd5+ {[%clk 0:01:25.7]}
20... Kh8 {[%clk 0:02:21]} 21. Re7 {[%clk 0:01:19.5]} 21... c6 {[%clk
0:02:09.7]} 22. Bf3 {[%clk 0:01:12]} 22... Nxf3+ {[%clk 0:02:08.6]} 23. gxf3
{[%clk 0:01:12.3]} 23... Rb7 {[%clk 0:01:56.5]} 24. Rxb7 {[%clk 0:00:51.1]}
24... Bxb7 {[%clk 0:01:57.4]} 25. Ne2 {[%clk 0:00:51.3]} 25... d5 {[%clk
0:01:34.1]} 26. c5 {[%clk 0:00:20.3]} 26... Ba6 {[%clk 0:01:30.2]} 27. Ng3
{[%clk 0:00:18.5]} 27... Bc4 {[%clk 0:01:26.2]} 28. a4 {[%clk 0:00:16.6]} 28...
Be5 {[%clk 0:01:16]} 29. f4 {[%clk 0:00:14.8]} 29... Bd4 {[%clk 0:01:16.1]} 30.
Rf1 {[%clk 0:00:09.9]} 30... Bxf1 {[%clk 0:01:14.5]} 31. Kxf1 {[%clk 0:00:09.8]}
31... Kg7 {[%clk 0:01:12.4]} 32. Be3 {[%clk 0:00:09.6]} 32... Bc3 {[%clk
0:01:11.9]} 33. b5 {[%clk 0:00:09.3]} 33... Kf6 {[%clk 0:01:08.1]} 34. b6 {[%clk
0:00:08.5]} 34... d4 {[%clk 0:01:06.6]} 35. Bc1 {[%clk 0:00:07.6]} 35... axb6
{[%clk 0:01:06.8]} 36. cxb6 {[%clk 0:00:08]} 36... Rb8 {[%clk 0:01:07]} 37. Nh5+
{[%clk 0:00:04.5]} 37... Ke6 {[%clk 0:01:05.8]} 38. Ng7+ {[%clk 0:00:02.9]}
38... Kf6 {[%clk 0:01:05.4]} 39. Nh5+ {[%clk 0:00:02.7]} 39... Kg6 {[%clk
0:01:05.8]} 40. Ng3 {[%clk 0:00:02.9]} 40... Rxb6 {[%clk 0:01:06.2]} 41. Ke2
{[%clk 0:00:02.4]} 41... Ra6 {[%clk 0:01:05]} 42. Kd3 {[%clk 0:00:02.4]} 42...
Rxa4 {[%clk 0:01:05.3]} 43. h4 {[%clk 0:00:02.9]} 43... c5 {[%clk 0:01:05.4]}
44. h5+ {[%clk 0:00:03.2]} 44... Kf6 {[%clk 0:01:05.8]} 45. f3 {[%clk
0:00:02.3]} 45... c4+ {[%clk 0:01:06]} 46. Kc2 {[%clk 0:00:01.8]} 46... Ra2+
{[%clk 0:01:05.9]} 47. Kb1 {[%clk 0:00:02.5]} 47... Rg2 {[%clk 0:01:03.9]} 48.
Nf1 {[%clk 0:00:03.1]} 48... Rg1 {[%clk 0:01:01]} 49. Kc2 {[%clk 0:00:01.7]}
49... Rxf1 {[%clk 0:01:00.1]} 50. h6 {[%clk 0:00:02.6]} 50... Rxc1+ {[%clk
0:00:58.5]} 51. Kxc1 {[%clk 0:00:02.8]} 51... Kg6 {[%clk 0:00:58.6]} 52. Kc2
{[%clk 0:00:03]} 52... Kxh6 {[%clk 0:00:58.8]} 53. Kc1 {[%clk 0:00:03.4]} 53...
Kh5 {[%clk 0:00:59]} 54. Kc2 {[%clk 0:00:03.9]} 54... Kh4 {[%clk 0:00:59.9]} 55.
Kc1 {[%clk 0:00:04.4]} 55... Kg3 {[%clk 0:01:00.8]} 56. Kc2 {[%clk 0:00:04.8]}
56... Kxf3 {[%clk 0:01:01.6]} 57. Kc1 {[%clk 0:00:05.3]} 57... Kxf4 {[%clk
0:01:02.5]} 58. Kc2 {[%clk 0:00:05.9]} 58... Ke3 {[%clk 0:01:02.8]} 59. Kd1
{[%clk 0:00:06.2]} 59... d3 {[%clk 0:01:02.5]} 60. Kc1 {[%clk 0:00:06.6]} 60...
f4 {[%clk 0:01:03]} 61. Kd1 {[%clk 0:00:07]} 61... Bb4 {[%clk 0:01:02]} 62. Kc1
{[%clk 0:00:07.3]} 62... c3 {[%clk 0:01:02.2]} 63. Kb1 {[%clk 0:00:07.4]} 63...
f3 {[%clk 0:01:02.7]} 64. Ka2 {[%clk 0:00:07.5]} 64... h5 {[%clk 0:01:02.5]} 65.
Kb3 {[%clk 0:00:07.7]} 65... h4 {[%clk 0:01:02.1]} 66. Kxb4 {[%clk 0:00:07.8]}
66... c2 {[%clk 0:01:02.4]} 67. Kb3 {[%clk 0:00:07.9]} 67... Kd2 {[%clk
0:01:01.7]} 68. Kc4 {[%clk 0:00:07.2]} 68... c1=Q+ {[%clk 0:01:01.9]} 69. Kd4
{[%clk 0:00:07.7]} 69... f2 {[%clk 0:01:01.6]} 70. Ke4 {[%clk 0:00:07.1]} 70...
f1=Q {[%clk 0:01:01.2]} 71. Kd4 {[%clk 0:00:06.2]} 71... h3 {[%clk 0:01:01.1]}
72. Ke5 {[%clk 0:00:05.5]} 72... Qce1+ {[%clk 0:01:01.3]} 73. Kd4 {[%clk
0:00:05.6]} 73... Kc2 {[%clk 0:01:01.3]} 74. Kc4 {[%clk 0:00:05.4]} 74... d2+
{[%clk 0:01:01.4]} 75. Kb4 {[%clk 0:00:05.7]} 75... d1=Q+ {[%clk 0:01:01.1]} 76.
Ka3 {[%clk 0:00:06.3]} 76... h2 {[%clk 0:01:00.2]} 77. Ka2 {[%clk 0:00:05.7]}
77... h1=Q {[%clk 0:00:58.8]} 78. Ka3 {[%clk 0:00:06.1]} 78... Qb1 {[%clk
0:00:56]} 79. Ka4 {[%clk 0:00:06.1]} 79... Qc4+ {[%clk 0:00:44.5]} 80. Ka3
{[%clk 0:00:05.6]} 80... Qa5# {[%clk 0:00:17.3]} 0-1

[Event "Late-Titled-Tuesday-Blitz-December-26-2023"]
[Site "Chess.com"]
[Date "2023.12.26"]
[Round "2"]
[White "IlanSchnaider"]
[Black "NovakRatko"]
[Result "1-0"]
[WhiteElo "2693"]
[BlackElo "2436"]
[TimeControl "180+1"]
[EndTime "14:19:28 PST"]
[Termination "IlanSchnaider won on time"]

1. e4 {[%clk 0:03:00.9]} 1... d5 {[%clk 0:02:59.8]} 2. exd5 {[%clk 0:03:00.8]}
2... c6 {[%clk 0:03:00.3]} 3. d4 {[%clk 0:02:55.3]} 3... cxd5 {[%clk 0:03:00.3]}
4. Bd3 {[%clk 0:02:55.6]} 4... Nc6 {[%clk 0:03:00.9]} 5. c3 {[%clk 0:02:54.6]}
5... e5 {[%clk 0:02:57.4]} 6. dxe5 {[%clk 0:02:50.4]} 6... Nxe5 {[%clk
0:02:56.4]} 7. Bb5+ {[%clk 0:02:49.6]} 7... Nc6 {[%clk 0:02:55.9]} 8. Nf3 {[%clk
0:02:49.1]} 8... Bc5 {[%clk 0:02:55.7]} 9. O-O {[%clk 0:02:49]} 9... Ne7 {[%clk
0:02:55.4]} 10. Re1 {[%clk 0:02:47.3]} 10... O-O {[%clk 0:02:55.4]} 11. Be3
{[%clk 0:02:46.7]} 11... Bxe3 {[%clk 0:02:49.8]} 12. Rxe3 {[%clk 0:02:47.6]}
12... Bg4 {[%clk 0:02:47.3]} 13. Nbd2 {[%clk 0:02:45.5]} 13... Qb6 {[%clk
0:02:43.1]} 14. Qa4 {[%clk 0:02:43.5]} 14... Bh5 {[%clk 0:02:32.4]} 15. Bxc6
{[%clk 0:02:38.6]} 15... Nxc6 {[%clk 0:02:30.3]} 16. Nb3 {[%clk 0:02:34.3]}
16... Bg6 {[%clk 0:02:21.4]} 17. Rae1 {[%clk 0:02:33.8]} 17... Bc2 {[%clk
0:02:21.6]} 18. Qa3 {[%clk 0:02:23]} 18... Bxb3 {[%clk 0:02:18.3]} 19. axb3
{[%clk 0:02:23.9]} 19... h6 {[%clk 0:02:17.5]} 20. Rd3 {[%clk 0:02:22.1]} 20...
Rad8 {[%clk 0:02:13.4]} 21. Red1 {[%clk 0:02:22.5]} 21... Qb5 {[%clk 0:02:04.8]}
22. h3 {[%clk 0:02:17.9]} 22... a5 {[%clk 0:01:54.5]} 23. Qa4 {[%clk 0:01:56.5]}
23... Qc5 {[%clk 0:01:47.6]} 24. Nd4 {[%clk 0:01:55.8]} 24... Ne5 {[%clk
0:01:41.8]} 25. Rg3 {[%clk 0:01:55.4]} 25... Ng6 {[%clk 0:01:31.3]} 26. Nf5
{[%clk 0:01:50]} 26... Rfe8 {[%clk 0:01:28.3]} 27. h4 {[%clk 0:01:46.3]} 27...
Re2 {[%clk 0:01:27.6]} 28. Rf1 {[%clk 0:01:40.7]} 28... d4 {[%clk 0:01:24]} 29.
Nxd4 {[%clk 0:01:26.8]} 29... Rxb2 {[%clk 0:01:20.3]} 30. Re1 {[%clk 0:01:01.9]}
30... b5 {[%clk 0:01:08.9]} 31. Qxa5 {[%clk 0:00:57.7]} 31... Rf8 {[%clk
0:00:47.1]} 32. Qa1 {[%clk 0:00:43.1]} 32... Rd2 {[%clk 0:00:40.4]} 33. Qc1
{[%clk 0:00:42.8]} 33... Ra2 {[%clk 0:00:40]} 34. Qb1 {[%clk 0:00:35.2]} 34...
Rd2 {[%clk 0:00:38.9]} 35. Qe4 {[%clk 0:00:30.1]} 35... b4 {[%clk 0:00:28.2]}
36. h5 {[%clk 0:00:17.2]} 36... bxc3 {[%clk 0:00:21.9]} 37. hxg6 {[%clk
0:00:16.2]} 37... Qxd4 {[%clk 0:00:19.8]} 38. gxf7+ {[%clk 0:00:16]} 38... Kh8
{[%clk 0:00:20.2]} 39. Qxd4 {[%clk 0:00:13.3]} 39... Rxd4 {[%clk 0:00:20.2]} 40.
Re8 {[%clk 0:00:13.1]} 40... Rd8 {[%clk 0:00:17.7]} 41. Rxd8 {[%clk 0:00:12]}
41... Rxd8 {[%clk 0:00:17.6]} 42. Rxc3 {[%clk 0:00:12.5]} 42... g5 {[%clk
0:00:13.7]} 43. Rc7 {[%clk 0:00:09.5]} 43... Kg7 {[%clk 0:00:13.7]} 44. Rb7
{[%clk 0:00:09.8]} 44... h5 {[%clk 0:00:12.3]} 45. f3 {[%clk 0:00:09.6]} 45...
Rd2 {[%clk 0:00:12.3]} 46. Kh2 {[%clk 0:00:09.7]} 46... h4 {[%clk 0:00:08.5]}
47. b4 {[%clk 0:00:09.3]} 47... Rb2 {[%clk 0:00:08.4]} 48. b5 {[%clk 0:00:09.7]}
48... Rd2 {[%clk 0:00:05.8]} 49. b6 {[%clk 0:00:09]} 49... Rb2 {[%clk
0:00:06.2]} 50. Kh3 {[%clk 0:00:09.6]} 50... Rb4 {[%clk 0:00:04.5]} 51. g3
{[%clk 0:00:08.6]} 51... hxg3 {[%clk 0:00:04.7]} 52. Kxg3 {[%clk 0:00:09.5]}
52... Rb3 {[%clk 0:00:01.5]} 53. Kg4 {[%clk 0:00:09.3]} 53... Rb5 {[%clk
0:00:02.4]} 54. Kh5 {[%clk 0:00:05.4]} 54... Rb3 {[%clk 0:00:02.3]} 55. Kxg5
{[%clk 0:00:05.3]} 55... Re3 {[%clk 0:00:02.5]} 56. f4 {[%clk 0:00:05]} 56...
Rg3+ {[%clk 0:00:02.5]} 57. Kf5 {[%clk 0:00:05.4]} 57... Rb3 {[%clk 0:00:02.4]}
58. Rb8 {[%clk 0:00:05]} 58... Kxf7 {[%clk 0:00:02.2]} 59. b7 {[%clk 0:00:05.7]}
59... Kg7 {[%clk 0:00:02.3]} 60. Kg5 {[%clk 0:00:06.2]} 60... Rb1 {[%clk
0:00:02.3]} 61. Kg4 {[%clk 0:00:04.5]} 61... Rg1+ {[%clk 0:00:02.2]} 62. Kf5
{[%clk 0:00:05.1]} 62... Rb1 {[%clk 0:00:03.1]} 63. Ke6 {[%clk 0:00:05.1]} 63...
Rb6+ {[%clk 0:00:03.3]} 64. Kd5 {[%clk 0:00:05.4]} 64... Rb4 {[%clk 0:00:03.6]}
65. f5 {[%clk 0:00:05]} 65... Rb5+ {[%clk 0:00:03.6]} 66. Kc6 {[%clk 0:00:03.1]}
66... Rxf5 {[%clk 0:00:03.6]} 67. Rd8 {[%clk 0:00:02.8]} 67... Rf6+ {[%clk
0:00:02.6]} 68. Kb5 {[%clk 0:00:02.3]} 68... Rf5+ {[%clk 0:00:02.6]} 69. Kb6
{[%clk 0:00:02.6]} 69... Rf6+ {[%clk 0:00:03.1]} 70. Ka7 {[%clk 0:00:02.4]}
70... Rf7 {[%clk 0:00:03.5]} 71. Ka8 {[%clk 0:00:02.9]} 71... Rxb7 {[%clk
0:00:02.2]} 72. Kxb7 {[%clk 0:00:03.3]} 1-0

[Event "Late-Titled-Tuesday-Blitz-December-26-2023"]
[Site "Chess.com"]
[Date "2023.12.26"]
[Round "2"]
[White "Nick12772"]
[Black "Mikayel99"]
[Result "0-1"]
[WhiteElo "2315"]
[BlackElo "2580"]
[TimeControl "180+1"]
[EndTime "14:19:55 PST"]
[Termination "Mikayel99 won by checkmate"]

1. Nf3 {[%clk 0:03:00.9]} 1... Nf6 {[%clk 0:02:59.4]} 2. g3 {[%clk 0:03:01.4]}
2... g6 {[%clk 0:02:59.5]} 3. Bg2 {[%clk 0:03:02.3]} 3... Bg7 {[%clk 0:02:59.8]}
4. O-O {[%clk 0:03:02.2]} 4... O-O {[%clk 0:03:00.5]} 5. c4 {[%clk 0:03:02.8]}
5... c6 {[%clk 0:03:00.5]} 6. Nc3 {[%clk 0:03:03.1]} 6... d5 {[%clk 0:03:00.9]}
7. cxd5 {[%clk 0:03:04]} 7... Nxd5 {[%clk 0:03:01.3]} 8. d4 {[%clk 0:03:04.9]}
8... Nxc3 {[%clk 0:03:00.9]} 9. bxc3 {[%clk 0:03:05.8]} 9... Nd7 {[%clk
0:02:58.6]} 10. a4 {[%clk 0:02:55.8]} 10... a5 {[%clk 0:02:56.9]} 11. Ba3 {[%clk
0:02:53.2]} 11... Nb6 {[%clk 0:02:54.2]} 12. Nd2 {[%clk 0:02:41.4]} 12... Be6
{[%clk 0:02:50.6]} 13. Rb1 {[%clk 0:02:41]} 13... Re8 {[%clk 0:02:44.8]} 14. Bc5
{[%clk 0:02:39.1]} 14... Ra6 {[%clk 0:02:41.7]} 15. Qc2 {[%clk 0:02:22.8]} 15...
Nd7 {[%clk 0:02:35.2]} 16. Rxb7 {[%clk 0:02:17.8]} 16... Nxc5 {[%clk 0:02:35.2]}
17. dxc5 {[%clk 0:02:18.7]} 17... Bd5 {[%clk 0:02:21.1]} 18. Bh3 {[%clk
0:01:39]} 18... f5 {[%clk 0:02:05]} 19. Rfb1 {[%clk 0:01:36.8]} 19... Ra8 {[%clk
0:02:04.2]} 20. Nb3 {[%clk 0:01:25.3]} 20... e5 {[%clk 0:02:02.4]} 21. Nd2
{[%clk 0:01:23.7]} 21... e4 {[%clk 0:01:54.3]} 22. e3 {[%clk 0:01:21.3]} 22...
Qf6 {[%clk 0:01:52.6]} 23. Bf1 {[%clk 0:01:14.5]} 23... Qxc3 {[%clk 0:01:48.5]}
24. Qxc3 {[%clk 0:01:14]} 24... Bxc3 {[%clk 0:01:49.4]} 25. Nc4 {[%clk
0:01:13.2]} 25... Bb4 {[%clk 0:01:45.6]} 26. Nd6 {[%clk 0:01:10]} 26... Reb8
{[%clk 0:01:45.4]} 27. Rxb8+ {[%clk 0:01:08.9]} 27... Rxb8 {[%clk 0:01:46.3]}
28. Bc4 {[%clk 0:01:03.8]} 28... Bxc4 {[%clk 0:01:46.1]} 29. Nxc4 {[%clk
0:01:04.7]} 29... Rc8 {[%clk 0:01:39.6]} 30. Ne5 {[%clk 0:00:55.8]} 30... Kg7
{[%clk 0:01:25]} 31. Rd1 {[%clk 0:00:52.8]} 31... Kf6 {[%clk 0:01:21.4]} 32.
Nd7+ {[%clk 0:00:52.3]} 32... Ke7 {[%clk 0:01:20.4]} 33. Nb6 {[%clk 0:00:49]}
33... Rc7 {[%clk 0:01:14.1]} 34. Rc1 {[%clk 0:00:44.9]} 34... Rb7 {[%clk
0:01:11.1]} 35. Nc4 {[%clk 0:00:41.6]} 35... Ra7 {[%clk 0:01:07.9]} 36. Ne5
{[%clk 0:00:39.3]} 36... Ra6 {[%clk 0:01:02]} 37. h4 {[%clk 0:00:30.1]} 37...
Ke6 {[%clk 0:01:01.1]} 38. Nc4 {[%clk 0:00:30.4]} 38... Bxc5 {[%clk 0:01:00.1]}
39. Kg2 {[%clk 0:00:20.6]} 39... Bb4 {[%clk 0:01:00.4]} 40. Rd1 {[%clk
0:00:19.9]} 40... Ra7 {[%clk 0:00:56.7]} 41. Rd8 {[%clk 0:00:18.4]} 41... Rb7
{[%clk 0:00:48.5]} 42. h5 {[%clk 0:00:17.9]} 42... gxh5 {[%clk 0:00:34.5]} 43.
Ra8 {[%clk 0:00:17.8]} 43... Kd5 {[%clk 0:00:24.8]} 44. Nxa5 {[%clk 0:00:15.7]}
44... Bxa5 {[%clk 0:00:25.7]} 45. Rxa5+ {[%clk 0:00:15.9]} 45... c5 {[%clk
0:00:26.6]} 46. Kf1 {[%clk 0:00:13]} 46... Rb2 {[%clk 0:00:21.3]} 47. Ra8 {[%clk
0:00:11.8]} 47... c4 {[%clk 0:00:20.9]} 48. a5 {[%clk 0:00:11.8]} 48... c3
{[%clk 0:00:21]} 49. Rc8 {[%clk 0:00:08.2]} 49... c2 {[%clk 0:00:15.5]} 50. Kg2
{[%clk 0:00:08.2]} 50... Ra2 {[%clk 0:00:10.6]} 51. a6 {[%clk 0:00:07.8]} 51...
Ke5 {[%clk 0:00:10.1]} 52. a7 {[%clk 0:00:07.6]} 52... Rxa7 {[%clk 0:00:09.6]}
53. Rxc2 {[%clk 0:00:07.8]} 53... Kf6 {[%clk 0:00:10.3]} 54. Rc6+ {[%clk
0:00:08]} 54... Kg5 {[%clk 0:00:10.3]} 55. Rd6 {[%clk 0:00:08.2]} 55... Rc7
{[%clk 0:00:09]} 56. Re6 {[%clk 0:00:08.5]} 56... Rg7 {[%clk 0:00:08]} 57. Rd6
{[%clk 0:00:08.9]} 57... h4 {[%clk 0:00:08.4]} 58. gxh4+ {[%clk 0:00:08.6]}
58... Kxh4+ {[%clk 0:00:09.2]} 59. Kh2 {[%clk 0:00:07.6]} 59... Kg5 {[%clk
0:00:08.5]} 60. Kg3 {[%clk 0:00:07]} 60... f4+ {[%clk 0:00:04.7]} 61. exf4+
{[%clk 0:00:05.5]} 61... Kf5+ {[%clk 0:00:05.3]} 62. Kh2 {[%clk 0:00:04.6]}
62... Kxf4 {[%clk 0:00:06]} 63. Re6 {[%clk 0:00:03.8]} 63... h5 {[%clk
0:00:04.8]} 64. Rh6 {[%clk 0:00:02.5]} 64... Kg5 {[%clk 0:00:04.6]} 65. Re6
{[%clk 0:00:02.8]} 65... Kf5 {[%clk 0:00:05]} 66. Rh6 {[%clk 0:00:03.4]} 66...
Kg4 {[%clk 0:00:03.8]} 67. Re6 {[%clk 0:00:03.3]} 67... Kf3 {[%clk 0:00:03.7]}
68. Rf6+ {[%clk 0:00:03.5]} 68... Ke2 {[%clk 0:00:03.6]} 69. Kh3 {[%clk
0:00:03.9]} 69... Rg1 {[%clk 0:00:03.1]} 70. Kh4 {[%clk 0:00:04.2]} 70... Rh1+
{[%clk 0:00:03.6]} 71. Kg5 {[%clk 0:00:04.8]} 71... h4 {[%clk 0:00:04.2]} 72.
Kg4 {[%clk 0:00:04.9]} 72... h3 {[%clk 0:00:04.5]} 73. Kg3 {[%clk 0:00:05.6]}
73... Kd3 {[%clk 0:00:05.1]} 74. Rd6+ {[%clk 0:00:05.1]} 74... Kc4 {[%clk
0:00:05.7]} 75. Re6 {[%clk 0:00:05.6]} 75... Kd5 {[%clk 0:00:06.3]} 76. Rf6
{[%clk 0:00:06.1]} 76... Ke5 {[%clk 0:00:06.8]} 77. Rh6 {[%clk 0:00:06.4]} 77...
Kd4 {[%clk 0:00:05.9]} 78. Rxh3 {[%clk 0:00:06.9]} 78... Rg1+ {[%clk 0:00:06.5]}
79. Kh2 {[%clk 0:00:07.1]} 79... Rf1 {[%clk 0:00:06.2]} 80. Kg2 {[%clk
0:00:07.4]} 80... Ra1 {[%clk 0:00:06.5]} 81. Rb3 {[%clk 0:00:07.8]} 81... Ra2
{[%clk 0:00:06.6]} 82. Rb4+ {[%clk 0:00:08.4]} 82... Kd5 {[%clk 0:00:07.1]} 83.
Rb8 {[%clk 0:00:09]} 83... e3 {[%clk 0:00:07.4]} 84. Rd8+ {[%clk 0:00:08.9]}
84... Kc6 {[%clk 0:00:07.5]} 85. Rf8 {[%clk 0:00:08.7]} 85... e2 {[%clk
0:00:07]} 86. Re8 {[%clk 0:00:09.4]} 86... Kd5 {[%clk 0:00:05.7]} 87. Kf3 {[%clk
0:00:09.9]} 87... Ra8 {[%clk 0:00:05.8]} 88. Rxe2 {[%clk 0:00:10.1]} 88... Rf8+
{[%clk 0:00:06.5]} 89. Kg2 {[%clk 0:00:10.8]} 89... Rg8+ {[%clk 0:00:07]} 90.
Kf1 {[%clk 0:00:10.9]} 90... Kd6 {[%clk 0:00:07.6]} 91. Re3 {[%clk 0:00:11.6]}
91... Kd5 {[%clk 0:00:08.1]} 92. Ke2 {[%clk 0:00:12.3]} 92... Rf8 {[%clk
0:00:08.6]} 93. Rf3 {[%clk 0:00:12.6]} 93... Re8+ {[%clk 0:00:08.4]} 94. Re3
{[%clk 0:00:13.3]} 94... Rh8 {[%clk 0:00:08.9]} 95. Rf3 {[%clk 0:00:13.9]} 95...
Ke5 {[%clk 0:00:09.3]} 96. Re3+ {[%clk 0:00:14.8]} 96... Kf4 {[%clk 0:00:09.8]}
97. Rf3+ {[%clk 0:00:15.7]} 97... Ke4 {[%clk 0:00:10.2]} 98. Ra3 {[%clk
0:00:16.4]} 98... Rb8 {[%clk 0:00:09.9]} 99. Ra4+ {[%clk 0:00:16.8]} 99... Kf5
{[%clk 0:00:10.5]} 100. Kf3 {[%clk 0:00:17.1]} 100... Rb5 {[%clk 0:00:11.1]}
101. Rb4 {[%clk 0:00:17.4]} 101... Rxb4 {[%clk 0:00:11.2]} 102. Kg2 {[%clk
0:00:17.7]} 102... Kf4 {[%clk 0:00:10.9]} 103. Kh3 {[%clk 0:00:18.1]} 103... Kf3
{[%clk 0:00:10.7]} 104. Kh2 {[%clk 0:00:16.5]} 104... Rh4+ {[%clk 0:00:10.4]}
105. Kg1 {[%clk 0:00:17.1]} 105... Rh3 {[%clk 0:00:10.2]} 106. Kf1 {[%clk
0:00:18]} 106... Rh1# {[%clk 0:00:10.5]} 0-1